bitfinex-derivatives/quotes_SOLF0:USTF0_20230105
["timestamp","ask_amount","ask_price","bid_price","bid_amount"]
[1672946060486,47.807,13.23,13.226,22.63]
[1672946060906,37.807,13.23,13.226,60.446]
[1672946061437,37.807,13.23,13.226,22.63]
[1672946061961,37.807,13.23,13.226,60.447]
[1672946062167,0.06603609,13.232,13.226,60.447]
[1672946062379,0.06603609,13.232,13.231,22.65]
[1672946062593,10.06395444,13.236,13.231,22.65]
[1672946062804,10.06395444,13.236,13.233,22.66]
[1672946063117,37.793,13.235,13.233,22.66]
[1672946065423,113.378,13.235,13.233,22.66]
[1672946067000,37.793,13.235,13.233,22.66]
[1672946067849,113.378,13.235,13.233,22.66]
[1672946069840,10.0,13.234,13.23,22.69350765]
[1672946070050,113.396,13.233,13.23,22.69350765]
[1672946070260,10.0,13.232,13.228,22.65]
[1672946070675,37.804,13.231,13.228,22.65]
[1672946071308,10.0,13.23,13.226,22.66]
[1672946071517,37.81,13.229,13.226,22.66]
[1672946071727,10.0,13.228,13.226,22.66]
[1672946071940,37.815,13.227,13.226,22.66]
[1672946072890,10.0,13.228,13.226,22.66]
[1672946073309,37.81,13.229,13.226,22.66]
[1672946073944,37.815,13.227,13.226,22.66]
[1672946076884,10.0,13.229,13.226,22.66]
[1672946078044,37.815,13.227,13.226,22.66]
[1672946078669,10.0,13.229,13.226,22.66]
[1672946078878,75.615,13.23,13.226,22.66]
[1672946079621,37.813,13.228,13.226,22.66]
[1672946080040,113.438,13.228,13.226,22.66]
[1672946082145,37.813,13.228,13.226,22.66]
[1672946084455,37.813,13.228,13.224,22.51]
[1672946084768,37.813,13.228,13.225,10.0]
[1672946084980,37.813,13.228,13.224,22.51]
[1672946090237,37.813,13.228,13.226,22.66]
[1672946090443,37.813,13.228,13.227,10.0]
[1672946091814,37.813,13.228,13.226,22.66]
[1672946093706,37.813,13.228,13.226,22.51]
[1672946093918,37.813,13.228,13.227,10.0]
[1672946094859,37.813,13.228,13.226,22.51]
[1672946095384,37.813,13.228,13.226,60.327]
[1672946096543,37.813,13.228,13.227,22.51]
[1672946096752,37.813,13.228,13.227,32.51]
[1672946096961,37.75296306,13.228,13.227,32.51]
[1672946097487,37.75296306,13.228,13.227,22.51]
[1672946097698,75.618,13.23,13.227,60.325]
[1672946098958,37.812,13.228,13.227,60.325]
[1672946100954,0.06014804,13.236,13.231,22.65]
[1672946101163,0.06014804,13.236,13.228,10.0]
[1672946101164,37.799,13.233,13.232,10.0]
[1672946101375,37.799,13.233,13.232,32.63]
[1672946101586,37.799,13.233,13.232,22.63]
[1672946102424,37.797,13.234,13.232,22.63]
[1672946102744,0.06956751,13.238,13.233,22.65]
[1672946103056,37.791,13.236,13.234,10.0]
[1672946103271,37.791,13.236,13.233,22.65]
[1672946103897,37.791,13.236,13.234,37.795]
[1672946105478,37.788,13.237,13.234,37.795]
[1672946107364,37.787,13.237,13.234,37.795]
[1672946109893,37.67943602,13.237,13.235,10.0]
[1672946110513,37.67943602,13.237,13.234,10.0]
[1672946111151,37.67943602,13.237,13.233,98.243]
[1672946111889,37.67943602,13.237,13.235,37.791]
[1672946112098,0.06956751,13.238,13.236,10.0]
[1672946112311,50.0,13.239,13.236,10.0]
[1672946112617,0.0658856,13.242,13.236,32.63]
[1672946112832,37.779,13.24,13.239,10.0]
[1672946113244,37.777,13.241,13.239,10.0]
[1672946113454,75.59993836,13.244,13.239,10.0]
[1672946113665,0.06593836,13.244,13.24,22.48]
[1672946113882,0.06593836,13.244,13.241,10.0]
[1672946114092,45.65866961,13.247,13.241,10.0]
[1672946114509,0.06846961,13.247,13.241,10.0]
[1672946114725,37.768,13.244,13.241,10.0]
[1672946115145,37.768,13.244,13.24,60.256]
[1672946116190,37.768,13.244,13.24,22.48]
[1672946116406,10.0,13.243,13.238,22.72623089]
[1672946116815,10.0,13.245,13.239,10.0]
[1672946117559,37.767,13.244,13.239,47.78]
[1672946117771,37.767,13.244,13.239,32.66]
[1672946119770,37.767,13.244,13.239,22.66]
[1672946120921,37.767,13.244,13.239,60.44]
[1672946123017,37.5280744,13.244,13.24,10.0]
[1672946123225,113.0620744,13.244,13.238,22.71623089]
[1672946123433,135.5320744,13.244,13.238,0.06623089]
[1672946123650,10.0,13.243,13.238,0.06623089]
[1672946123859,113.32,13.242,13.238,0.06623089]
[1672946124072,10.0,13.241,13.238,0.06623089]
[1672946124285,37.778,13.24,13.235,0.06059301]
[1672946124488,10.0,13.239,13.235,0.06059301]
[1672946125121,10.0,13.241,13.236,22.63]
[1672946125333,10.0,13.243,13.237,10.0]
[1672946125851,37.775,13.242,13.237,10.0]
[1672946126070,10.0,13.241,13.236,22.63]
[1672946126913,37.778,13.24,13.237,37.786]
[1672946128171,37.778,13.24,13.236,22.63]
[1672946129958,37.778,13.24,13.236,60.418]
[1672946130691,10.0,13.239,13.236,22.63]
[1672946130906,37.784,13.238,13.236,22.63]
[1672946134472,10.0,13.237,13.232,0.06775083]
[1672946134689,136.033,13.236,13.23,0.06005325]
[1672946134897,10.0,13.235,13.228,0.06983523]
[1672946136054,37.798,13.233,13.228,0.06983523]
[1672946136259,10.0,13.232,13.228,0.06983523]
[1672946138155,10.0,13.23,13.228,0.06983523]
[1672946138360,10.0,13.23,13.226,60.477]
[1672946139210,10.0,13.232,13.226,60.477]
[1672946139631,37.807,13.23,13.226,60.477]
[1672946139835,37.807,13.23,13.226,22.66]
[1672946140152,37.807,13.23,13.226,60.477]
[1672946140680,10.0,13.229,13.226,22.66]
[1672946140885,37.812,13.228,13.226,22.66]
[1672946145719,37.81,13.229,13.227,10.0]
[1672946145937,75.67059566,13.232,13.228,22.48]
[1672946146142,75.67059566,13.232,13.229,10.0]
[1672946146457,37.808,13.23,13.227,22.65]
[1672946146666,10.0,13.229,13.227,22.65]
[1672946146870,10.0,13.231,13.227,22.65]
[1672946147614,75.603,13.232,13.227,22.65]
[1672946148029,37.812,13.229,13.227,22.65]
[1672946156754,37.808,13.23,13.227,22.65]
[1672946156961,75.612,13.231,13.227,22.65]
[1672946157490,37.811,13.229,13.227,22.65]
[1672946157699,37.811,13.229,13.225,37.819]
[1672946157700,37.811,13.229,13.226,22.66]
[1672946163687,37.811,13.229,13.226,60.477]
[1672946165998,0.06576013,13.232,13.226,60.4065839]
[1672946166211,0.06576013,13.232,13.227,10.0]
[1672946167267,113.417,13.231,13.227,47.815]
[1672946168630,113.417,13.231,13.227,37.815]
[1672946170727,37.805,13.231,13.227,37.815]
[1672946177242,37.805,13.231,13.227,60.445]
[1672946177664,37.805,13.231,13.228,22.66]
[1672946177875,37.805,13.231,13.229,10.0]
[1672946178081,0.06576013,13.232,13.23,22.66]
[1672946178288,0.0601586,13.236,13.231,22.66]
[1672946178504,0.0601586,13.236,13.231,32.66]
[1672946178819,37.794,13.235,13.232,10.0]
[1672946179031,0.0601586,13.236,13.232,10.0]
[1672946179873,37.8511586,13.236,13.232,10.0]
[1672946180082,37.8511586,13.236,13.231,22.66]
[1672946180609,37.8511586,13.236,13.229,85.67488261]
[1672946180817,37.8511586,13.236,13.232,22.48]
[1672946181132,37.8511586,13.236,13.233,10.0]
[1672946181342,37.791,13.236,13.233,10.0]
[1672946181553,37.791,13.236,13.232,22.48]
[1672946181870,37.791,13.236,13.232,60.28]
[1672946185340,37.791,13.236,13.232,37.8]
[1672946189434,37.791,13.236,13.23,22.51]
[1672946189648,10.0,13.235,13.229,0.06088261]
[1672946189855,0.08779682,13.229,13.228,22.66]
[1672946190488,37.89679682,13.229,13.228,22.66]
[1672946190698,37.89679682,13.229,13.226,60.477]
[1672946194373,37.89679682,13.229,13.226,22.66]
[1672946195112,0.08779682,13.229,13.226,60.478]
[1672946195634,37.89779682,13.229,13.226,60.478]
[1672946197006,37.89779682,13.229,13.226,22.66]
[1672946198899,37.89779682,13.229,13.226,60.477]
[1672946201211,37.89779682,13.229,13.226,22.66]
[1672946202471,37.89779682,13.229,13.226,60.477]
[1672946219918,0.08779682,13.229,13.226,136.113]
[1672946222230,37.89779682,13.229,13.226,136.113]
[1672946227276,37.89779682,13.229,13.228,22.65]
[1672946227696,37.89779682,13.229,13.223,0.06760749]
[1672946227697,22.6499,13.228,13.223,0.06760749]
[1672946227907,37.817,13.227,13.224,22.51]
[1672946228227,37.817,13.227,13.225,22.47]
[1672946230008,37.817,13.227,13.224,22.39]
[1672946232423,37.817,13.227,13.225,22.56]
[1672946248296,10.0,13.226,13.223,22.62760749]
[1672946248505,10.0,13.226,13.218,75.678]
[1672946248506,113.463,13.225,13.22,0.06918834]
[1672946248717,10.0,13.224,13.22,0.06918834]
[1672946248924,135.902,13.223,13.216,22.39]
[1672946249135,10.0,13.222,13.216,22.39]
[1672946249769,113.505,13.221,13.216,22.39]
[1672946249979,37.835,13.221,13.216,22.39]
[1672946251030,37.835,13.221,13.216,60.235]
[1672946257863,37.835,13.221,13.217,10.0]
[1672946258491,37.835,13.221,13.216,22.63]
[1672946259221,37.835,13.221,13.218,10.0]
[1672946259850,37.835,13.221,13.217,47.842]
[1672946260172,37.835,13.221,13.217,37.842]
[1672946269209,37.835,13.221,13.216,22.63]
[1672946269417,113.5,13.221,13.216,60.475]
[1672946269628,37.835,13.221,13.216,60.475]
[1672946270889,37.835,13.221,13.216,136.169]
[1672946271411,37.835,13.221,13.216,60.475]
[1672946271621,37.73080185,13.221,13.217,10.0]
[1672946272990,37.73080185,13.221,13.218,37.84]
[1672946279399,37.73080185,13.221,13.216,98.322]
[1672946280454,37.73080185,13.221,13.217,37.842]
[1672946288228,37.73080185,13.221,13.218,22.48]
[1672946290120,37.73080185,13.221,13.218,60.32]
[1672946293270,37.73080185,13.221,13.218,22.48]
[1672946294956,37.73080185,13.221,13.218,60.32]
[1672946296844,0.06753644,13.223,13.22,22.57]
[1672946297059,75.70206455,13.226,13.221,32.66260898]
[1672946297269,75.639,13.226,13.222,22.47]
[1672946297582,75.639,13.226,13.222,32.47]
[1672946298948,113.457,13.226,13.222,70.298]
[1672946299263,113.457,13.226,13.222,32.47]
[1672946300733,113.457,13.226,13.222,22.47]
[1672946300945,37.818,13.226,13.222,60.299]
[1672946301681,37.818,13.226,13.223,10.0]
[1672946301992,37.6753256,13.226,13.224,37.824]
[1672946302203,37.816,13.227,13.225,10.0]
[1672946303045,37.816,13.227,13.225,37.821]
[1672946303567,10.0,13.229,13.225,37.821]
[1672946303781,37.811,13.229,13.225,37.821]
[1672946304305,37.817,13.227,13.222,22.47]
[1672946305885,37.817,13.227,13.223,37.825]
[1672946306096,37.817,13.227,13.224,10.0]
[1672946306611,37.817,13.227,13.223,10.0]
[1672946306819,37.817,13.227,13.222,22.47]
[1672946307033,37.817,13.227,13.223,37.826]
[1672946308717,37.817,13.227,13.222,37.828]
[1672946316384,37.817,13.227,13.222,60.398]
[1672946318071,37.817,13.227,13.222,37.828]
[1672946323016,37.817,13.227,13.222,37.829]
[1672946323216,37.817,13.227,13.223,10.0]
[1672946324269,37.817,13.227,13.222,47.829]
[1672946325428,37.817,13.227,13.222,37.829]
[1672946327417,37.817,13.227,13.221,22.86057279]
[1672946327631,37.817,13.227,13.221,0.25057279]
[1672946328893,37.817,13.227,13.221,38.08157279]
[1672946330149,37.817,13.227,13.221,0.25057279]
[1672946332989,37.817,13.227,13.221,38.08257279]
[1672946334151,37.817,13.227,13.221,0.25057279]
[1672946334361,37.817,13.227,13.221,38.08257279]
[1672946339724,10.0,13.226,13.221,0.25057279]
[1672946339931,136.077,13.225,13.221,0.25057279]
[1672946340248,10.0,13.224,13.221,0.25057279]
[1672946340458,10.0,13.224,13.221,0.18260898]
[1672946341088,37.827,13.223,13.221,0.18260898]
[1672946341300,10.0,13.222,13.221,0.18260898]
[1672946341615,37.827,13.223,13.221,0.18260898]
[1672946342451,37.829,13.222,13.221,0.18260898]
[1672946350447,37.829,13.222,13.221,22.62260898]
[1672946350662,37.827,13.223,13.221,22.62260898]
[1672946352236,37.827,13.223,13.221,0.18260898]
[1672946371987,37.827,13.223,13.219,47.837]
[1672946374934,37.827,13.223,13.219,37.837]
[1672946378606,37.827,13.223,13.218,22.50031482]
[1672946378816,10.0,13.222,13.218,0.06031482]
[1672946379031,113.499,13.221,13.218,0.06031482]
[1672946379343,10.0,13.22,13.215,22.67522442]
[1672946379552,37.839,13.219,13.216,10.0]
[1672946379974,37.839,13.219,13.216,32.63]
[1672946380604,37.838,13.219,13.216,32.63]
[1672946380814,37.838,13.219,13.216,22.63]
[1672946381974,37.838,13.219,13.217,10.0]
[1672946382495,37.838,13.219,13.218,22.59]
[1672946384286,37.838,13.219,13.218,60.431]
[1672946384495,37.837,13.22,13.218,60.431]
[1672946384917,37.837,13.22,13.218,22.59]
[1672946385653,113.508,13.22,13.216,22.62]
[1672946385863,0.06068493,13.222,13.218,22.63]
[1672946386068,0.06068493,13.222,13.221,22.54]
[1672946386282,75.65,13.224,13.221,22.54]
[1672946387124,37.829,13.222,13.221,22.54]
[1672946394693,75.65,13.224,13.221,22.54]
[1672946394906,37.828,13.223,13.221,22.54]
[1672946395323,37.828,13.223,13.222,10.0]
[1672946396059,37.826,13.224,13.222,10.0]
[1672946397007,37.826,13.224,13.222,47.829]
[1672946397219,37.826,13.224,13.222,37.829]
[1672946397638,37.826,13.224,13.223,22.54]
[1672946398268,37.826,13.224,13.222,60.349]
[1672946400478,37.826,13.224,13.222,22.52]
[1672946400996,37.88840264,13.226,13.222,60.348]
[1672946401212,37.82840264,13.226,13.225,22.61]
[1672946401421,621.0,13.231,13.225,22.61]
[1672946401634,50.0,13.231,13.225,22.61]
[1672946401843,113.427,13.23,13.225,22.61]
[1672946402053,10.0,13.229,13.225,22.61]
[1672946402468,37.809,13.23,13.225,22.61]
[1672946402679,37.813,13.228,13.225,22.61]
[1672946403527,37.813,13.228,13.226,10.0]
[1672946403838,37.813,13.228,13.226,47.818]
[1672946404155,37.812,13.229,13.226,47.818]
[1672946406988,75.67541868,13.232,13.229,10.0]
[1672946407192,75.591,13.234,13.229,10.0]
[1672946407401,37.805,13.231,13.229,10.0]
[1672946408668,37.805,13.231,13.229,47.809]
[1672946409406,0.07078167,13.235,13.229,47.809]
[1672946409719,75.65778167,13.235,13.229,47.809]
[1672946410354,37.797,13.234,13.229,47.809]
[1672946412456,37.797,13.234,13.229,37.809]
[1672946414980,37.69975671,13.234,13.23,10.0]
[1672946416870,37.69975671,13.234,13.23,47.804]
[1672946417605,37.69975671,13.234,13.231,22.61]
[1672946417816,37.69975671,13.234,13.232,10.0]
[1672946421912,37.69975671,13.234,13.232,47.8]
[1672946422333,37.69975671,13.234,13.232,37.8]
[1672946423071,0.07078167,13.235,13.232,37.8]
[1672946423282,646.574,13.237,13.233,10.0]
[1672946423488,75.574,13.237,13.233,10.0]
[1672946424542,37.794,13.235,13.233,10.0]
[1672946426217,37.794,13.235,13.233,32.61]
[1672946426423,37.79,13.236,13.233,32.61]
[1672946426851,0.06352131,13.238,13.233,32.61]
[1672946427056,0.06352131,13.238,13.234,22.52]
[1672946427276,0.06352131,13.238,13.236,22.61]
[1672946427487,75.562,13.24,13.237,10.0]
[1672946428220,37.785,13.238,13.237,10.0]
[1672946428425,37.785,13.238,13.236,60.398]
[1672946428952,37.783,13.239,13.236,60.398]
[1672946436202,75.61407774,13.242,13.236,60.398]
[1672946437989,37.777,13.241,13.236,60.398]
[1672946443143,75.61407774,13.242,13.236,60.398]
[1672946443144,37.84307774,13.242,13.236,60.398]
[1672946443353,0.06807774,13.242,13.236,60.398]
[1672946444088,37.84207774,13.242,13.236,60.398]
[1672946445667,37.84207774,13.242,13.237,10.0]
[1672946445980,37.84207774,13.242,13.238,37.782]
[1672946446188,571.0,13.244,13.239,32.61]
[1672946446397,37.768,13.244,13.241,22.61]
[1672946446608,37.768,13.244,13.242,10.0]
[1672946449025,85.5841185,13.248,13.241,22.61]
[1672946449762,113.283,13.246,13.241,22.61]
[1672946450286,113.283,13.246,13.241,60.385]
[1672946450501,113.283,13.246,13.241,22.61]
[1672946450714,37.761,13.246,13.241,22.61]
[1672946451859,37.761,13.246,13.241,60.385]
[1672946454807,37.761,13.246,13.241,22.61]
[1672946455118,10.0,13.245,13.241,22.61]
[1672946455335,37.767,13.244,13.238,0.06588119]
[1672946455545,10.0,13.243,13.238,0.06588119]
[1672946456596,85.59486295,13.245,13.238,0.06588119]
[1672946456911,37.774,13.242,13.238,37.84888119]
[1672946457438,85.59486295,13.245,13.238,37.84888119]
[1672946459010,37.773,13.242,13.238,37.84888119]
[1672946463007,37.773,13.242,13.238,0.06588119]
[1672946463636,10.0,13.241,13.238,0.06588119]
[1672946463850,37.778,13.24,13.237,22.61]
[1672946464583,37.778,13.24,13.235,0.07058038]
[1672946465000,37.778,13.24,13.235,37.86258038]
[1672946465211,37.778,13.24,13.235,0.07058038]
[1672946468263,37.778,13.24,13.235,10.07058038]
[1672946468474,37.778,13.24,13.236,22.61]
[1672946468683,37.778,13.24,13.237,10.0]
[1672946469525,37.83632827,13.242,13.238,22.61]
[1672946469730,37.83632827,13.242,13.239,10.0]
[1672946470047,37.774,13.242,13.239,10.0]
[1672946470886,37.774,13.242,13.239,47.78]
[1672946471627,37.771,13.243,13.24,22.61]
[1672946471938,37.771,13.243,13.241,10.0]
[1672946472990,37.771,13.243,13.241,47.775]
[1672946473304,37.771,13.243,13.241,10.0]
[1672946473516,37.83180845,13.245,13.241,10.0]
[1672946473723,37.83180845,13.245,13.241,32.61]
[1672946473937,0.06580845,13.245,13.243,22.61]
[1672946474253,10.07133262,13.249,13.244,10.0]
[1672946475408,37.757,13.248,13.244,37.767]
[1672946475624,10.0,13.247,13.243,22.4586306]
[1672946475835,37.761,13.246,13.243,22.4586306]
[1672946481616,37.761,13.246,13.244,10.0]
[1672946481927,0.07133262,13.249,13.246,10.0]
[1672946482135,37.752,13.25,13.248,22.61]
[1672946482341,37.747,13.251,13.249,10.0]
[1672946482553,10.0,13.25,13.248,22.61]
[1672946482766,10.0,13.25,13.247,22.61]
[1672946482975,47.749,13.25,13.247,22.61]
[1672946483184,10.0,13.249,13.24,22.61]
[1672946483402,113.28,13.247,13.24,22.61]
[1672946483605,10.0,13.246,13.241,10.0]
[1672946484136,37.76,13.247,13.241,10.0]
[1672946484346,37.765,13.245,13.241,10.0]
[1672946486133,37.765,13.245,13.24,22.61]
[1672946486134,10.0,13.244,13.24,22.61]
[1672946486344,37.77,13.243,13.24,22.61]
[1672946486769,113.309,13.243,13.24,22.61]
[1672946487819,37.77,13.243,13.24,22.61]
[1672946493913,37.77,13.243,13.24,60.387]
[1672946497065,37.77,13.243,13.24,22.61]
[1672946507572,37.77,13.243,13.239,0.06921133]
[1672946510304,37.77,13.243,13.239,37.84921133]
[1672946515446,0.06680298,13.246,13.239,0.06921133]
[1672946515662,0.06680298,13.246,13.241,22.61]
[1672946515873,0.06680298,13.246,13.242,10.0]
[1672946516084,37.765,13.245,13.242,10.0]
[1672946518606,37.82780298,13.246,13.242,10.0]
[1672946518812,0.06680298,13.246,13.242,10.0]
[1672946519550,37.82780298,13.246,13.242,47.772]
[1672946522814,37.82780298,13.246,13.242,37.772]
[1672946524286,37.82780298,13.246,13.241,22.61]
[1672946525966,37.82780298,13.246,13.241,60.384]
[1672946527755,37.82780298,13.246,13.242,22.61]
[1672946527969,37.82780298,13.246,13.243,10.0]
[1672946528278,37.761,13.246,13.243,10.0]
[1672946528910,37.761,13.246,13.243,47.769]
[1672946529539,113.32715984,13.249,13.243,47.769]
[1672946530699,37.76,13.247,13.243,10.0]
[1672946530904,37.76,13.247,13.242,22.61]
[1672946532694,10.0,13.246,13.242,22.61]
[1672946532911,37.764,13.245,13.242,22.61]
[1672946533217,10.0,13.244,13.242,22.61]
[1672946533430,37.769,13.243,13.242,22.61]
[1672946536685,37.764,13.245,13.242,22.61]
[1672946536895,0.06915984,13.249,13.239,10.06921133]
[1672946536896,0.06915984,13.249,13.244,22.52]
[1672946537111,10.0,13.253,13.249,0.02633765]
[1672946537631,113.234,13.252,13.249,0.02633765]
[1672946539001,37.744,13.252,13.249,0.02633765]
[1672946539628,37.739,13.254,13.249,0.02633765]
[1672946539840,0.06953189,13.255,13.25,22.61]
[1672946540266,37.738,13.254,13.25,22.61]
[1672946540895,0.06953189,13.255,13.25,22.61]
[1672946541214,0.06953189,13.255,13.251,10.0]
[1672946541947,37.80453189,13.255,13.251,10.0]
[1672946542679,0.06953189,13.255,13.252,22.52]
[1672946542989,0.06809289,13.258,13.253,10.0]
[1672946543204,37.733,13.256,13.253,10.0]
[1672946543413,0.06809289,13.258,13.253,32.61]
[1672946543625,0.06809289,13.258,13.256,10.0]
[1672946543837,37.727,13.258,13.256,10.0]
[1672946544043,75.49440261,13.262,13.257,22.45]
[1672946544250,37.719,13.261,13.257,22.45]
[1672946544465,37.719,13.261,13.259,22.61]
[1672946545305,37.719,13.261,13.257,22.52]
[1672946545510,0.06040261,13.262,13.258,10.0]
[1672946545725,37.77540261,13.262,13.258,10.0]
[1672946548142,0.06040261,13.262,13.258,10.0]
[1672946548775,37.77840261,13.262,13.258,10.0]
[1672946549929,37.57925311,13.262,13.258,10.0]
[1672946550764,37.57925311,13.262,13.258,47.726]
[1672946553713,37.57925311,13.262,13.258,10.0]
[1672946554871,37.57925311,13.262,13.257,22.52]
[1672946556549,113.01025311,13.262,13.257,22.52]
[1672946559395,37.57925311,13.262,13.258,10.0]
[1672946562124,37.57925311,13.262,13.258,47.726]
[1672946564018,37.57925311,13.262,13.258,10.0]
[1672946564644,0.06476379,13.265,13.258,10.0]
[1672946564859,37.713,13.263,13.259,22.45]
[1672946565070,10.06476379,13.265,13.26,10.0]
[1672946565491,37.711,13.264,13.261,22.61]
[1672946569489,37.77276379,13.265,13.261,60.327]
[1672946573374,37.77276379,13.265,13.261,22.61]
[1672946574947,0.06476379,13.265,13.261,22.61]
[1672946575261,44.2345,13.272,13.264,22.61]
[1672946575466,37.693,13.27,13.265,32.61]
[1672946576001,37.693,13.27,13.266,10.0]
[1672946576422,0.1,13.272,13.266,10.0]
[1672946576840,10.1,13.272,13.266,10.0]
[1672946577050,10.1,13.272,13.265,10.0]
[1672946577262,37.693,13.27,13.265,10.0]
[1672946579362,37.693,13.27,13.264,22.52]
[1672946581254,37.693,13.27,13.265,10.0]
[1672946581989,37.693,13.27,13.264,22.52]
[1672946582727,113.079,13.27,13.264,22.52]
[1672946583775,113.079,13.27,13.266,22.61]
[1672946583982,37.693,13.27,13.267,10.0]
[1672946584304,0.1,13.272,13.267,10.0]
[1672946584715,37.693,13.27,13.267,10.0]
[1672946585249,37.691,13.271,13.267,10.0]
[1672946585459,37.691,13.271,13.268,22.45]
[1672946585671,37.691,13.271,13.269,10.0]
[1672946586087,37.691,13.271,13.269,47.695]
[1672946586719,37.789,13.272,13.269,47.695]
[1672946588188,0.1,13.272,13.269,47.695]
[1672946589453,0.01837225,13.272,13.269,47.695]
[1672946589663,0.01837225,13.272,13.271,22.61]
[1672946591136,0.01837225,13.272,13.271,60.3]
[1672946591342,0.01837225,13.272,13.271,70.3]
[1672946593132,0.01837225,13.272,13.27,22.52]
[1672946593445,0.01837225,13.272,13.271,10.0]
[1672946594805,0.01837225,13.272,13.271,32.61]
[1672946595756,0.06223535,13.276,13.272,10.0]
[1672946596073,10.0,13.288,13.275,22.61]
[1672946596388,10.0,13.288,13.282,22.61]
[1672946596598,37.651,13.285,13.282,22.61]
[1672946596908,37.651,13.285,13.279,0.06042036]
[1672946596909,10.0,13.284,13.279,0.06042036]
[1672946597125,22.61,13.281,13.277,0.06001476]
[1672946597337,10.0,13.28,13.274,0.06295191]
[1672946597757,122.995,13.28,13.274,0.06295191]
[1672946598914,37.681,13.274,13.269,10.0]
[1672946599329,10.0,13.273,13.269,10.0]
[1672946599539,47.681,13.274,13.269,10.0]
[1672946599747,37.679,13.275,13.269,10.0]
[1672946599955,10.0,13.274,13.269,10.0]
[1672946600169,10.0,13.274,13.267,22.58712388]
[1672946600378,47.683,13.274,13.269,37.694]
[1672946600594,47.683,13.274,13.27,10.0]
[1672946601007,47.683,13.274,13.268,10.0]
[1672946601216,10.0,13.274,13.269,22.61]
[1672946601425,47.679,13.275,13.27,10.0]
[1672946601962,47.679,13.275,13.269,22.61]
[1672946602168,47.679,13.275,13.267,98.07712388]
[1672946603957,37.679,13.275,13.269,37.695]
[1672946604166,37.679,13.275,13.27,32.52]
[1672946604376,37.677,13.276,13.271,10.0]
[1672946604589,10.0,13.275,13.271,10.0]
[1672946605105,10.0,13.275,13.27,32.52]
[1672946605320,10.0,13.275,13.27,22.52]
[1672946605954,10.0,13.275,13.271,37.688]
[1672946606483,37.677,13.276,13.271,37.688]
[1672946607221,10.0,13.275,13.269,60.145]
[1672946607636,47.73649807,13.277,13.27,10.0]
[1672946608477,37.73649807,13.277,13.272,22.61]